Workbook

Sheet Grand-livre
V1: =Libellés!C38 -> 7
D2: =IF(B3="","",VLOOKUP(B3,Plancompta,3)) -> + | G2: =IF(B3="","",VLOOKUP(B3,Plancompta,4)) -> - | J2: =IF(H3="","",VLOOKUP(H3,Plancompta,3)) -> + | M2: =IF(H3="","",VLOOKUP(H3,Plancompta,4)) -> - | P2: =IF(N3="","",VLOOKUP(N3,Plancompta,3)) -> + | S2: =IF(N3="","",VLOOKUP(N3,Plancompta,4)) -> - | V2: =IF(T3="","",VLOOKUP(T3,Plancompta,3)) -> + | Y2: =IF(T3="","",VLOOKUP(T3,Plancompta,4)) -> - | AC2: =IF(AA3="","",VLOOKUP(AA3,Plancompta,3)) ->  | AF2: =IF(AA3="","",VLOOKUP(AA3,Plancompta,4)) ->  | AI2: =IF(AG3="","",VLOOKUP(AG3,Plancompta,3)) ->  | AL2: =IF(AG3="","",VLOOKUP(AG3,Plancompta,4)) ->  | AO2: =IF(AM3="","",VLOOKUP(AM3,Plancompta,3)) ->  | AR2: =IF(AM3="","",VLOOKUP(AM3,Plancompta,4)) ->  | AU2: =IF(AS3="","",VLOOKUP(AS3,Plancompta,3)) ->  | AX2: =IF(AS3="","",VLOOKUP(AS3,Plancompta,4)) -> 
B3: 1000 | D3: =IF(B3="","",B3 & " " & VLOOKUP(B3,Plancompta,2)) -> 1000 Caisse | H3: 1010 | J3: =IF(H3="","",H3 & " " & VLOOKUP(H3,Plancompta,2)) -> 1010 Poste | N3: 1020 | P3: =IF(N3="","",N3 & " " & VLOOKUP(N3,Plancompta,2)) -> 1020 Banque | T3: 1060 | V3: =IF(T3="","",T3 & " " & VLOOKUP(T3,Plancompta,2)) -> 1060 Titres | AC3: =IF(AA3="","",AA3 & " " & VLOOKUP(AA3,Plancompta,2)) ->  | AI3: =IF(AG3="","",AG3 & " " & VLOOKUP(AG3,Plancompta,2)) ->  | AO3: =IF(AM3="","",AM3 & " " & VLOOKUP(AM3,Plancompta,2)) ->  | AU3: =IF(AS3="","",AS3 & " " & VLOOKUP(AS3,Plancompta,2)) -> 
D4: Si | E4: 2,850.00 | F4: 6) | G4: 1,290.00 | J4: si | K4: 2,500.00 | L4: 4) | M4: 145.00 | P4: si | Q4: 20,000.00 | R4: 5) | S4: 58.75 | V4: si | W4: 6,000.00 | BD4: table
J5: 3) | K5: 600.00 | BC5: =IF(INT(BD5/2)=BD5/2,1,2) -> 2 | BD5: =B11 -> 41 | BE5: =IF(BC5=2,BH5*-1,BH5) -> 1,560.00 | BF5: =D3 -> 1000 Caisse | BG5: =LEFT(BF5,4) -> 1000 | BH5: =C11 -> -1,560.00
BC6: =IF(INT(BD6/2)=BD6/2,1,2) -> 2 | BD6: =H11 -> 43 | BE6: 2,955.00 | BF6: =J3 -> 1010 Poste | BG6: =LEFT(BF6,4) -> 1010 | BH6: =I11 -> -2,955.00
BC7: 2 | BD7: =N11 -> 45 | BE7: 19,941.25 | BF7: =P3 -> 1020 Banque | BG7: 1020 | BH7: =O11 -> -19,941.25
BC8: 2 | BD8: =T11 -> 47 | BE8: 6,000.00 | BF8: =V3 -> 1060 Titres | BG8: 1060 | BH8: =U11 -> -6,000.00
BC9: 2 | BD9: =B22 -> 49 | BE9: 4,200.00 | BF9: =D14 -> 1100 Débiteurs | BG9: 1100 | BH9: =C22 -> -4,200.00
BC10: 2 | BD10: =H22 -> 51 | BE10: 15.10 | BF10: =J14 -> 1170 Impôt préalable I | BG10: 1170 | BH10: =I22 -> -15.10
B11: 41 | C11: =E11-G11 -> -1,560.00 | D11: =IF(E11=0,"",C12) ->  | E11: =IF(E4+G4=0,0,IF(SUM(E4:E10)>SUM(G4:G10),0,SUM(G4:G10)-SUM(E4:E10))) -> 0.00 | F11: =IF(G11=0,"",C12) -> v/bi | G11: =IF(E4+G4=0,0,IF(SUM(G4:G10)>SUM(E4:E10),0,SUM(E4:E10)-SUM(G4:G10))) -> 1,560.00 | H11: 43 | I11: =K11-M11 -> -2,955.00 | J11: =IF(K11=0,"",I12) ->  | K11: =IF(K4+M4=0,0,IF(SUM(K4:K10)>SUM(M4:M10),0,SUM(M4:M10)-SUM(K4:K10))) -> 0.00 | L11: =IF(M11=0,"",I12) -> v/bi | M11: =IF(K4+M4=0,0,IF(SUM(M4:M10)>SUM(K4:K10),0,SUM(K4:K10)-SUM(M4:M10))) -> 2,955.00 | N11: 45 | O11: =Q11-S11 -> -19,941.25 | P11: =IF(Q11=0,"",O12) ->  | Q11: =IF(Q4+S4=0,0,IF(SUM(Q4:Q10)>SUM(S4:S10),0,SUM(S4:S10)-SUM(Q4:Q10))) -> 0.00 | R11: =IF(S11=0,"",O12) -> v/bi | S11: =IF(Q4+S4=0,0,IF(SUM(S4:S10)>SUM(Q4:Q10),0,SUM(Q4:Q10)-SUM(S4:S10))) -> 19,941.25 | T11: 47 | U11: =W11-Y11 -> -6,000.00 | V11: =IF(W11=0,"",U12) ->  | W11: =IF(W4+Y4=0,0,IF(SUM(W4:W10)>SUM(Y4:Y10),0,SUM(Y4:Y10)-SUM(W4:W10))) -> 0.00 | X11: =IF(Y11=0,"",U12) -> v/bi | Y11: =IF(W4+Y4=0,0,IF(SUM(Y4:Y10)>SUM(W4:W10),0,SUM(W4:W10)-SUM(Y4:Y10))) -> 6,000.00 | AB11: =AD11-AF11 -> 0.00 | AC11: =IF(AD11=0,"",AB12) ->  | AD11: =IF(AD4+AF4=0,0,IF(SUM(AD4:AD10)>SUM(AF4:AF10),0,SUM(AF4:AF10)-SUM(AD4:AD10))) -> 0.00 | AE11: =IF(AF11=0,"",AB12) ->  | AF11: =IF(AD4+AF4=0,0,IF(SUM(AF4:AF10)>SUM(AD4:AD10),0,SUM(AD4:AD10)-SUM(AF4:AF10))) -> 0.00 | AH11: =AJ11-AL11 -> 0.00 | AI11: =IF(AJ11=0,"",AH12) ->  | AJ11: =IF(AJ4+AL4=0,0,IF(SUM(AJ4:AJ10)>SUM(AL4:AL10),0,SUM(AL4:AL10)-SUM(AJ4:AJ10))) -> 0.00 | AK11: =IF(AL11=0,"",AH12) ->  | AL11: =IF(AJ4+AL4=0,0,IF(SUM(AL4:AL10)>SUM(AJ4:AJ10),0,SUM(AJ4:AJ10)-SUM(AL4:AL10))) -> 0.00 | AN11: =AP11-AR11 -> 0.00 | AO11: =IF(AP11=0,"",AN12) ->  | AP11: =IF(AP4+AR4=0,0,IF(SUM(AP4:AP10)>SUM(AR4:AR10),0,SUM(AR4:AR10)-SUM(AP4:AP10))) -> 0.00 | AQ11: =IF(AR11=0,"",AN12) ->  | AR11: =IF(AP4+AR4=0,0,IF(SUM(AR4:AR10)>SUM(AP4:AP10),0,SUM(AP4:AP10)-SUM(AR4:AR10))) -> 0.00 | AT11: =AV11-AX11 -> 0.00 | AU11: =IF(AV11=0,"",AT12) ->  | AV11: =IF(AV4+AX4=0,0,IF(SUM(AV4:AV10)>SUM(AX4:AX10),0,SUM(AX4:AX10)-SUM(AV4:AV10))) -> 0.00 | AW11: =IF(AX11=0,"",AT12) ->  | AX11: =IF(AV4+AX4=0,0,IF(SUM(AX4:AX10)>SUM(AV4:AV10),0,SUM(AV4:AV10)-SUM(AX4:AX10))) -> 0.00 | BC11: 2 | BD11: =N22 -> 53 | BE11: 95.55 | BF11: =P14 -> 1171 Impôt préalable II | BG11: 1171 | BH11: =O22 -> -95.55
C12: =IF(B11="","spb",IF(B11>40,"v/bi","v/ex")) -> v/bi | E12: =IF(E4+G4=0,"",SUM(E4:E11)) -> 2,850.00 | G12: =IF(E4+G4=0,"",SUM(G4:G11)) -> 2,850.00 | I12: =IF(H11="","spb",IF(H11>40,"v/bi","v/ex")) -> v/bi | K12: =IF(K4+M4=0,"",SUM(K4:K11)) -> 3,100.00 | M12: =IF(K4+M4=0,"",SUM(M4:M11)) -> 3,100.00 | O12: =IF(N11="","spb",IF(N11>40,"v/bi","v/ex")) -> v/bi | Q12: =IF(Q4+S4=0,"",SUM(Q4:Q11)) -> 20,000.00 | S12: =IF(Q4+S4=0,"",SUM(S4:S11)) -> 20,000.00 | U12: =IF(T11="","spb",IF(T11>40,"v/bi","v/ex")) -> v/bi | W12: =IF(W4+Y4=0,"",SUM(W4:W11)) -> 6,000.00 | Y12: =IF(W4+Y4=0,"",SUM(Y4:Y11)) -> 6,000.00 | AB12: =IF(AA11="","spb",IF(AA11>40,"v/bi","v/ex")) -> spb | AD12: =IF(AD4+AF4=0,"",SUM(AD4:AD11)) ->  | AF12: =IF(AD4+AF4=0,"",SUM(AF4:AF11)) ->  | AH12: =IF(AG11="","spb",IF(AG11>40,"v/bi","v/ex")) -> spb | AJ12: =IF(AJ4+AL4=0,"",SUM(AJ4:AJ11)) ->  | AL12: =IF(AJ4+AL4=0,"",SUM(AL4:AL11)) ->  | AN12: =IF(AM11="","spb",IF(AM11>40,"v/bi","v/ex")) -> spb | AP12: =IF(AP4+AR4=0,"",SUM(AP4:AP11)) ->  | AR12: =IF(AP4+AR4=0,"",SUM(AR4:AR11)) ->  | AT12: =IF(AS11="","spb",IF(AS11>40,"v/bi","v/ex")) -> spb | AV12: =IF(AV4+AX4=0,"",SUM(AV4:AV11)) ->  | AX12: =IF(AV4+AX4=0,"",SUM(AX4:AX11)) ->  | BC12: 1 | BD12: =T22 -> 42 | BE12: 3,000.00 | BF12: =V14 -> 2000 Fournisseurs | BG12: 2000 | BH12: =U22 -> 3,000.00
D13: =IF(B14="","",VLOOKUP(B14,Plancompta,3)) -> + | G13: =IF(B14="","",VLOOKUP(B14,Plancompta,4)) -> - | J13: =IF(H14="","",VLOOKUP(H14,Plancompta,3)) -> + | M13: =IF(H14="","",VLOOKUP(H14,Plancompta,4)) -> - | P13: =IF(N14="","",VLOOKUP(N14,Plancompta,3)) -> + | S13: =IF(N14="","",VLOOKUP(N14,Plancompta,4)) -> - | V13: =IF(T14="","",VLOOKUP(T14,Plancompta,3)) -> - | Y13: =IF(T14="","",VLOOKUP(T14,Plancompta,4)) -> + | AC13: =IF(AA14="","",VLOOKUP(AA14,Plancompta,3)) ->  | AF13: =IF(AA14="","",VLOOKUP(AA14,Plancompta,4)) ->  | AI13: =IF(AG14="","",VLOOKUP(AG14,Plancompta,3)) ->  | AL13: =IF(AG14="","",VLOOKUP(AG14,Plancompta,4)) ->  | AO13: =IF(AM14="","",VLOOKUP(AM14,Plancompta,3)) ->  | AR13: =IF(AM14="","",VLOOKUP(AM14,Plancompta,4)) ->  | AU13: =IF(AS14="","",VLOOKUP(AS14,Plancompta,3)) ->  | AX13: =IF(AS14="","",VLOOKUP(AS14,Plancompta,4)) ->  | BC13: 1 | BD13: =B33 -> 44 | BE13: 44.45 | BF13: =D25 -> 2200 TVA due | BG13: 2200 | BH13: =C33 -> 44.45
B14: 1100 | D14: =IF(B14="","",B14 & " " & VLOOKUP(B14,Plancompta,2)) -> 1100 Débiteurs | H14: 1170 | J14: =IF(H14="","",H14 & " " & VLOOKUP(H14,Plancompta,2)) -> 1170 Impôt préalable I | N14: 1171 | P14: =IF(N14="","",N14 & " " & VLOOKUP(N14,Plancompta,2)) -> 1171 Impôt préalable II | T14: 2000 | V14: =IF(T14="","",T14 & " " & VLOOKUP(T14,Plancompta,2)) -> 2000 Fournisseurs | AC14: =IF(AA14="","",AA14 & " " & VLOOKUP(AA14,Plancompta,2)) ->  | AI14: =IF(AG14="","",AG14 & " " & VLOOKUP(AG14,Plancompta,2)) ->  | AO14: =IF(AM14="","",AM14 & " " & VLOOKUP(AM14,Plancompta,2)) ->  | AU14: =IF(AS14="","",AS14 & " " & VLOOKUP(AS14,Plancompta,2)) ->  | BC14: 1 | BD14: =H33 -> 46 | BE14: 32,550.00 | BF14: =J25 -> 2800 Capital | BG14: 2800 | BH14: =I33 -> 32,550.00
D15: si | E15: 4,200.00 | F15: 3) | G15: 631.80 | J15: 2) | K15: 11.10 | L15: 4) | M15: 0.35 | P15: 6) | Q15: 95.55 | V15: 4) | W15: 149.60 | X15: si | Y15: 3,000.00 | BC15: 1 | BD15: =N33 -> 48 | BE15: 0.00 | BF15: =P25 -> 2850 Privé | BG15: 2850 | BH15: =O33 -> 0.00
D16: 1) | E16: 631.80 | J16: 5) | K16: 4.35 | X16: 2) | Y16: 149.60 | BC16: 2 | BD16: =T33 -> 55 | BE16: 1,194.45 | BF16: =V25 -> 1520 Informatique | BG16: 1520 | BH16: =U33 -> -1,194.45
BC17: 1 | BD17: =B44 -> 2 | BE17: 555.55 | BF17: =D36 -> 3200 Ventes | BG17: 3200 | BH17: =C44 -> 555.55
BC18: 2 | BD18: =H44 -> 1 | BE18: 134.25 | BF18: =J36 -> 4200 Achats march. | BG18: 4200 | BH18: =I44 -> -134.25
BC19: 2 | BD19: =N44 -> 3 | BE19: 54.40 | BF19: =P36 -> 4300 Frais de livraison | BG19: 4300 | BH19: =O44 -> -54.40
BC20: 1 | BD20: =T44 -> 4 | BE20: 0.00 | BF20: =V36 -> 7400 Prod. financiers | BG20: 7400 | BH20: =U44 -> 0.00
BC21: 1 | BD21: =B66 -> 0 | BE21: 366.90 | BF21: =D50 -> 9000 Résultat | BG21: 9000 | BH21: =C66 -> 366.90
B22: 49 | C22: =E22-G22 -> -4,200.00 | D22: =IF(E22=0,"",C23) ->  | E22: =IF(E15+G15=0,0,IF(SUM(E15:E21)>SUM(G15:G21),0,SUM(G15:G21)-SUM(E15:E21))) -> 0.00 | F22: =IF(G22=0,"",C23) -> v/bi | G22: =IF(E15+G15=0,0,IF(SUM(G15:G21)>SUM(E15:E21),0,SUM(E15:E21)-SUM(G15:G21))) -> 4,200.00 | H22: 51 | I22: =K22-M22 -> -15.10 | J22: =IF(K22=0,"",I23) ->  | K22: =IF(K15+M15=0,0,IF(SUM(K15:K21)>SUM(M15:M21),0,SUM(M15:M21)-SUM(K15:K21))) -> 0.00 | L22: =IF(M22=0,"",I23) -> v/bi | M22: =IF(K15+M15=0,0,IF(SUM(M15:M21)>SUM(K15:K21),0,SUM(K15:K21)-SUM(M15:M21))) -> 15.10 | N22: 53 | O22: =Q22-S22 -> -95.55 | P22: =IF(Q22=0,"",O23) ->  | Q22: =IF(Q15+S15=0,0,IF(SUM(Q15:Q21)>SUM(S15:S21),0,SUM(S15:S21)-SUM(Q15:Q21))) -> 0.00 | R22: =IF(S22=0,"",O23) -> v/bi | S22: =IF(Q15+S15=0,0,IF(SUM(S15:S21)>SUM(Q15:Q21),0,SUM(Q15:Q21)-SUM(S15:S21))) -> 95.55 | T22: 42 | U22: =W22-Y22 -> 3,000.00 | V22: =IF(W22=0,"",U23) -> v/bi | W22: =IF(W15+Y15=0,0,IF(SUM(W15:W21)>SUM(Y15:Y21),0,SUM(Y15:Y21)-SUM(W15:W21))) -> 3,000.00 | X22: =IF(Y22=0,"",U23) ->  | Y22: =IF(W15+Y15=0,0,IF(SUM(Y15:Y21)>SUM(W15:W21),0,SUM(W15:W21)-SUM(Y15:Y21))) -> 0.00 | AB22: =AD22-AF22 -> 0.00 | AC22: =IF(AD22=0,"",AB23) ->  | AD22: =IF(AD15+AF15=0,0,IF(SUM(AD15:AD21)>SUM(AF15:AF21),0,SUM(AF15:AF21)-SUM(AD15:AD21))) -> 0.00 | AE22: =IF(AF22=0,"",AB23) ->  | AF22: =IF(AD15+AF15=0,0,IF(SUM(AF15:AF21)>SUM(AD15:AD21),0,SUM(AD15:AD21)-SUM(AF15:AF21))) -> 0.00 | AH22: =AJ22-AL22 -> 0.00 | AI22: =IF(AJ22=0,"",AH23) ->  | AJ22: =IF(AJ15+AL15=0,0,IF(SUM(AJ15:AJ21)>SUM(AL15:AL21),0,SUM(AL15:AL21)-SUM(AJ15:AJ21))) -> 0.00 | AK22: =IF(AL22=0,"",AH23) ->  | AL22: =IF(AJ15+AL15=0,0,IF(SUM(AL15:AL21)>SUM(AJ15:AJ21),0,SUM(AJ15:AJ21)-SUM(AL15:AL21))) -> 0.00 | AN22: =AP22-AR22 -> 0.00 | AO22: =IF(AP22=0,"",AN23) ->  | AP22: =IF(AP15+AR15=0,0,IF(SUM(AP15:AP21)>SUM(AR15:AR21),0,SUM(AR15:AR21)-SUM(AP15:AP21))) -> 0.00 | AQ22: =IF(AR22=0,"",AN23) ->  | AR22: =IF(AP15+AR15=0,0,IF(SUM(AR15:AR21)>SUM(AP15:AP21),0,SUM(AP15:AP21)-SUM(AR15:AR21))) -> 0.00 | AT22: =AV22-AX22 -> 0.00 | AU22: =IF(AV22=0,"",AT23) ->  | AV22: =IF(AV15+AX15=0,0,IF(SUM(AV15:AV21)>SUM(AX15:AX21),0,SUM(AX15:AX21)-SUM(AV15:AV21))) -> 0.00 | AW22: =IF(AX22=0,"",AT23) ->  | AX22: =IF(AV15+AX15=0,0,IF(SUM(AX15:AX21)>SUM(AV15:AV21),0,SUM(AV15:AV21)-SUM(AX15:AX21))) -> 0.00 | BC22: 1 | BD22: =AA11 -> 0 | BE22: 0.00 | BF22: =AC3 ->  | BH22: =AB11 -> 0.00
C23: =IF(B22="","spb",IF(B22>40,"v/bi","v/ex")) -> v/bi | E23: =IF(E15+G15=0,"",SUM(E15:E22)) -> 4,831.80 | G23: =IF(E15+G15=0,"",SUM(G15:G22)) -> 4,831.80 | I23: =IF(H22="","spb",IF(H22>40,"v/bi","v/ex")) -> v/bi | K23: =IF(K15+M15=0,"",SUM(K15:K22)) -> 15.45 | M23: =IF(K15+M15=0,"",SUM(M15:M22)) -> 15.45 | O23: =IF(N22="","spb",IF(N22>40,"v/bi","v/ex")) -> v/bi | Q23: =IF(Q15+S15=0,"",SUM(Q15:Q22)) -> 95.55 | S23: =IF(Q15+S15=0,"",SUM(S15:S22)) -> 95.55 | U23: =IF(T22="","spb",IF(T22>40,"v/bi","v/ex")) -> v/bi | W23: =IF(W15+Y15=0,"",SUM(W15:W22)) -> 3,149.60 | Y23: =IF(W15+Y15=0,"",SUM(Y15:Y22)) -> 3,149.60 | AB23: =IF(AA22="","spb",IF(AA22>40,"v/bi","v/ex")) -> spb | AD23: =IF(AD15+AF15=0,"",SUM(AD15:AD22)) ->  | AF23: =IF(AD15+AF15=0,"",SUM(AF15:AF22)) ->  | AH23: =IF(AG22="","spb",IF(AG22>40,"v/bi","v/ex")) -> spb | AJ23: =IF(AJ15+AL15=0,"",SUM(AJ15:AJ22)) ->  | AL23: =IF(AJ15+AL15=0,"",SUM(AL15:AL22)) ->  | AN23: =IF(AM22="","spb",IF(AM22>40,"v/bi","v/ex")) -> spb | AP23: =IF(AP15+AR15=0,"",SUM(AP15:AP22)) ->  | AR23: =IF(AP15+AR15=0,"",SUM(AR15:AR22)) ->  | AT23: =IF(AS22="","spb",IF(AS22>40,"v/bi","v/ex")) -> spb | AV23: =IF(AV15+AX15=0,"",SUM(AV15:AV22)) ->  | AX23: =IF(AV15+AX15=0,"",SUM(AX15:AX22)) ->  | BC23: 1 | BD23: =AG11 -> 0 | BE23: 0.00 | BF23: =AI3 ->  | BH23: =AH11 -> 0.00
D24: =IF(B25="","",VLOOKUP(B25,Plancompta,3)) -> - | G24: =IF(B25="","",VLOOKUP(B25,Plancompta,4)) -> + | J24: =IF(H25="","",VLOOKUP(H25,Plancompta,3)) -> - | M24: =IF(H25="","",VLOOKUP(H25,Plancompta,4)) -> + | P24: =IF(N25="","",VLOOKUP(N25,Plancompta,3)) -> - | S24: =IF(N25="","",VLOOKUP(N25,Plancompta,4)) -> + | V24: =IF(T25="","",VLOOKUP(T25,Plancompta,3)) -> + | Y24: =IF(T25="","",VLOOKUP(T25,Plancompta,4)) -> - | AC24: =IF(AA25="","",VLOOKUP(AA25,Plancompta,3)) ->  | AF24: =IF(AA25="","",VLOOKUP(AA25,Plancompta,4)) ->  | AI24: =IF(AG25="","",VLOOKUP(AG25,Plancompta,3)) ->  | AL24: =IF(AG25="","",VLOOKUP(AG25,Plancompta,4)) ->  | AO24: =IF(AM25="","",VLOOKUP(AM25,Plancompta,3)) ->  | AR24: =IF(AM25="","",VLOOKUP(AM25,Plancompta,4)) ->  | AU24: =IF(AS25="","",VLOOKUP(AS25,Plancompta,3)) ->  | AX24: =IF(AS25="","",VLOOKUP(AS25,Plancompta,4)) ->  | BC24: 1 | BD24: =AM11 -> 0 | BE24: 0.00 | BF24: =AO3 ->  | BH24: =AN11 -> 0.00
B25: 2200 | D25: =IF(B25="","",B25 & " " & VLOOKUP(B25,Plancompta,2)) -> 2200 TVA due | H25: 2800 | J25: =IF(H25="","",H25 & " " & VLOOKUP(H25,Plancompta,2)) -> 2800 Capital | N25: 2850 | P25: =IF(N25="","",N25 & " " & VLOOKUP(N25,Plancompta,2)) -> 2850 Privé | T25: 1520 | V25: =IF(T25="","",T25 & " " & VLOOKUP(T25,Plancompta,2)) -> 1520 Informatique | AC25: =IF(AA25="","",AA25 & " " & VLOOKUP(AA25,Plancompta,2)) ->  | AI25: =IF(AG25="","",AG25 & " " & VLOOKUP(AG25,Plancompta,2)) ->  | AO25: =IF(AM25="","",AM25 & " " & VLOOKUP(AM25,Plancompta,2)) ->  | AU25: =IF(AS25="","",AS25 & " " & VLOOKUP(AS25,Plancompta,2)) ->  | BC25: 1 | BD25: =AS11 -> 0 | BE25: 0.00 | BF25: =AU3 ->  | BH25: =AT11 -> 0.00
D26: 3) | E26: 2.35 | F26: 1) | G26: 46.80 | L26: si | M26: 32,550.00 | V26: 6) | W26: 1,194.45 | BC26: 1 | BD26: =AA22 -> 0 | BE26: 0.00 | BF26: =AC14 ->  | BH26: =AB22 -> 0.00
BC27: 1 | BD27: =AG22 -> 0 | BE27: 0.00 | BF27: =AI14 ->  | BH27: =AH22 -> 0.00
BC28: 1 | BD28: =AM22 -> 0 | BE28: 0.00 | BF28: =AO14 ->  | BH28: =AN22 -> 0.00
BC29: 1 | BD29: =AS22 -> 0 | BE29: 0.00 | BF29: =AU14 ->  | BH29: =AT22 -> 0.00
BC30: 1 | BD30: =AA33 -> 0 | BE30: 0.00 | BF30: =AC25 ->  | BH30: =AB33 -> 0.00
BC31: 1 | BD31: =AG33 -> 0 | BE31: 0.00 | BF31: =AI25 ->  | BH31: =AH33 -> 0.00
BC32: 1 | BD32: =AM33 -> 0 | BE32: 0.00 | BF32: =AO25 ->  | BH32: =AN33 -> 0.00
B33: 44 | C33: =E33-G33 -> 44.45 | D33: =IF(E33=0,"",C34) -> v/bi | E33: =IF(E26+G26=0,0,IF(SUM(E26:E32)>SUM(G26:G32),0,SUM(G26:G32)-SUM(E26:E32))) -> 44.45 | F33: =IF(G33=0,"",C34) ->  | G33: =IF(E26+G26=0,0,IF(SUM(G26:G32)>SUM(E26:E32),0,SUM(E26:E32)-SUM(G26:G32))) -> 0.00 | H33: 46 | I33: =K33-M33 -> 32,550.00 | J33: =IF(K33=0,"",I34) -> v/bi | K33: =IF(K26+M26=0,0,IF(SUM(K26:K32)>SUM(M26:M32),0,SUM(M26:M32)-SUM(K26:K32))) -> 32,550.00 | L33: =IF(M33=0,"",I34) ->  | M33: =IF(K26+M26=0,0,IF(SUM(M26:M32)>SUM(K26:K32),0,SUM(K26:K32)-SUM(M26:M32))) -> 0.00 | N33: 48 | O33: =Q33-S33 -> 0.00 | P33: =IF(Q33=0,"",O34) ->  | Q33: =IF(Q26+S26=0,0,IF(SUM(Q26:Q32)>SUM(S26:S32),0,SUM(S26:S32)-SUM(Q26:Q32))) -> 0.00 | R33: =IF(S33=0,"",O34) ->  | S33: =IF(Q26+S26=0,0,IF(SUM(S26:S32)>SUM(Q26:Q32),0,SUM(Q26:Q32)-SUM(S26:S32))) -> 0.00 | T33: 55 | U33: =W33-Y33 -> -1,194.45 | V33: =IF(W33=0,"",U34) ->  | W33: =IF(W26+Y26=0,0,IF(SUM(W26:W32)>SUM(Y26:Y32),0,SUM(Y26:Y32)-SUM(W26:W32))) -> 0.00 | X33: =IF(Y33=0,"",U34) -> v/bi | Y33: =IF(W26+Y26=0,0,IF(SUM(Y26:Y32)>SUM(W26:W32),0,SUM(W26:W32)-SUM(Y26:Y32))) -> 1,194.45 | AB33: =AD33-AF33 -> 0.00 | AC33: =IF(AD33=0,"",AB34) ->  | AD33: =IF(AD26+AF26=0,0,IF(SUM(AD26:AD32)>SUM(AF26:AF32),0,SUM(AF26:AF32)-SUM(AD26:AD32))) -> 0.00 | AE33: =IF(AF33=0,"",AB34) ->  | AF33: =IF(AD26+AF26=0,0,IF(SUM(AF26:AF32)>SUM(AD26:AD32),0,SUM(AD26:AD32)-SUM(AF26:AF32))) -> 0.00 | AH33: =AJ33-AL33 -> 0.00 | AI33: =IF(AJ33=0,"",AH34) ->  | AJ33: =IF(AJ26+AL26=0,0,IF(SUM(AJ26:AJ32)>SUM(AL26:AL32),0,SUM(AL26:AL32)-SUM(AJ26:AJ32))) -> 0.00 | AK33: =IF(AL33=0,"",AH34) ->  | AL33: =IF(AJ26+AL26=0,0,IF(SUM(AL26:AL32)>SUM(AJ26:AJ32),0,SUM(AJ26:AJ32)-SUM(AL26:AL32))) -> 0.00 | AN33: =AP33-AR33 -> 0.00 | AO33: =IF(AP33=0,"",AN34) ->  | AP33: =IF(AP26+AR26=0,0,IF(SUM(AP26:AP32)>SUM(AR26:AR32),0,SUM(AR26:AR32)-SUM(AP26:AP32))) -> 0.00 | AQ33: =IF(AR33=0,"",AN34) ->  | AR33: =IF(AP26+AR26=0,0,IF(SUM(AR26:AR32)>SUM(AP26:AP32),0,SUM(AP26:AP32)-SUM(AR26:AR32))) -> 0.00 | AT33: =AV33-AX33 -> 0.00 | AU33: =IF(AV33=0,"",AT34) ->  | AV33: =IF(AV26+AX26=0,0,IF(SUM(AV26:AV32)>SUM(AX26:AX32),0,SUM(AX26:AX32)-SUM(AV26:AV32))) -> 0.00 | AW33: =IF(AX33=0,"",AT34) ->  | AX33: =IF(AV26+AX26=0,0,IF(SUM(AX26:AX32)>SUM(AV26:AV32),0,SUM(AV26:AV32)-SUM(AX26:AX32))) -> 0.00 | BC33: 1 | BD33: =AS33 -> 0 | BE33: 0.00 | BF33: =AU25 ->  | BH33: =AT33 -> 0.00
C34: =IF(B33="","spb",IF(B33>40,"v/bi","v/ex")) -> v/bi | E34: =IF(E26+G26=0,"",SUM(E26:E33)) -> 46.80 | G34: =IF(E26+G26=0,"",SUM(G26:G33)) -> 46.80 | I34: =IF(H33="","spb",IF(H33>40,"v/bi","v/ex")) -> v/bi | K34: =IF(K26+M26=0,"",SUM(K26:K33)) -> 32,550.00 | M34: =IF(K26+M26=0,"",SUM(M26:M33)) -> 32,550.00 | O34: =IF(N33="","spb",IF(N33>40,"v/bi","v/ex")) -> v/bi | Q34: =IF(Q26+S26=0,"",SUM(Q26:Q33)) ->  | S34: =IF(Q26+S26=0,"",SUM(S26:S33)) ->  | U34: =IF(T33="","spb",IF(T33>40,"v/bi","v/ex")) -> v/bi | W34: =IF(W26+Y26=0,"",SUM(W26:W33)) -> 1,194.45 | Y34: =IF(W26+Y26=0,"",SUM(Y26:Y33)) -> 1,194.45 | AB34: =IF(AA33="","spb",IF(AA33>40,"v/bi","v/ex")) -> spb | AD34: =IF(AD26+AF26=0,"",SUM(AD26:AD33)) ->  | AF34: =IF(AD26+AF26=0,"",SUM(AF26:AF33)) ->  | AH34: =IF(AG33="","spb",IF(AG33>40,"v/bi","v/ex")) -> spb | AJ34: =IF(AJ26+AL26=0,"",SUM(AJ26:AJ33)) ->  | AL34: =IF(AJ26+AL26=0,"",SUM(AL26:AL33)) ->  | AN34: =IF(AM33="","spb",IF(AM33>40,"v/bi","v/ex")) -> spb | AP34: =IF(AP26+AR26=0,"",SUM(AP26:AP33)) ->  | AR34: =IF(AP26+AR26=0,"",SUM(AR26:AR33)) ->  | AT34: =IF(AS33="","spb",IF(AS33>40,"v/bi","v/ex")) -> spb | AV34: =IF(AV26+AX26=0,"",SUM(AV26:AV33)) ->  | AX34: =IF(AV26+AX26=0,"",SUM(AX26:AX33)) ->  | BC34: 1 | BD34: =AA44 -> 0 | BE34: 0.00 | BF34: =AC36 ->  | BH34: =AB44 -> 0.00
D35: =IF(B36="","",VLOOKUP(B36,Plancompta,3)) -> - | G35: =IF(B36="","",VLOOKUP(B36,Plancompta,4)) -> + | J35: =IF(H36="","",VLOOKUP(H36,Plancompta,3)) -> + | M35: =IF(H36="","",VLOOKUP(H36,Plancompta,4)) -> - | P35: =IF(N36="","",VLOOKUP(N36,Plancompta,3)) -> + | S35: =IF(N36="","",VLOOKUP(N36,Plancompta,4)) -> - | V35: =IF(T36="","",VLOOKUP(T36,Plancompta,3)) -> - | Y35: =IF(T36="","",VLOOKUP(T36,Plancompta,4)) -> + | AC35: =IF(AA36="","",VLOOKUP(AA36,Plancompta,3)) ->  | AF35: =IF(AA36="","",VLOOKUP(AA36,Plancompta,4)) ->  | AI35: =IF(AG36="","",VLOOKUP(AG36,Plancompta,3)) ->  | AL35: =IF(AG36="","",VLOOKUP(AG36,Plancompta,4)) ->  | AO35: =IF(AM36="","",VLOOKUP(AM36,Plancompta,3)) ->  | AR35: =IF(AM36="","",VLOOKUP(AM36,Plancompta,4)) ->  | AU35: =IF(AS36="","",VLOOKUP(AS36,Plancompta,3)) ->  | AX35: =IF(AS36="","",VLOOKUP(AS36,Plancompta,4)) ->  | BC35: 1 | BD35: =AG44 -> 0 | BE35: 0.00 | BF35: =AI36 ->  | BH35: =AH44 -> 0.00
B36: 3200 | D36: =IF(B36="","",B36 & " " & VLOOKUP(B36,Plancompta,2)) -> 3200 Ventes | H36: 4200 | J36: =IF(H36="","",H36 & " " & VLOOKUP(H36,Plancompta,2)) -> 4200 Achats march. | N36: 4300 | P36: =IF(N36="","",N36 & " " & VLOOKUP(N36,Plancompta,2)) -> 4300 Frais de livraison | T36: 7400 | V36: =IF(T36="","",T36 & " " & VLOOKUP(T36,Plancompta,2)) -> 7400 Prod. financiers | AC36: =IF(AA36="","",AA36 & " " & VLOOKUP(AA36,Plancompta,2)) ->  | AI36: =IF(AG36="","",AG36 & " " & VLOOKUP(AG36,Plancompta,2)) ->  | AO36: =IF(AM36="","",AM36 & " " & VLOOKUP(AM36,Plancompta,2)) ->  | AU36: =IF(AS36="","",AS36 & " " & VLOOKUP(AS36,Plancompta,2)) ->  | BC36: 1 | BD36: =AM44 -> 0 | BE36: 0.00 | BF36: =AO36 ->  | BH36: =AN44 -> 0.00
D37: 3) | E37: 29.45 | F37: 1) | G37: 585.00 | J37: 2) | K37: 138.50 | L37: 4) | M37: 4.25 | P37: 5) | Q37: 54.40 | BC37: 1 | BD37: =AS44 -> 0 | BE37: 0.00 | BF37: =AU36 ->  | BH37: =AT44 -> 0.00
BC38: 2 | BD38: 1 | BE38: =AT46 -> 0 | BF38: 0 | BG38: 0 | BH38: =AT46 -> 0
BC39: 1 | BD39: 2 | BE39: =AT47 -> 0 | BF39: 0 | BG39: 0 | BH39: =AT47 -> 0
BC40: 2 | BD40: 3 | BE40: =AT48 -> 0 | BF40: 0 | BG40: 0 | BH40: =AT48 -> 0
BC41: 1 | BD41: 4 | BE41: =AT50 -> 0 | BF41: 0 | BG41: 0 | BH41: =AT50 -> 0
BC42: 2 | BD42: 5 | BE42: =AT51 -> 0 | BF42: 0 | BG42: 0 | BH42: =AT51 -> 0
BC43: 1 | BD43: 6 | BE43: =AT52 -> 0 | BF43: 0 | BG43: 0 | BH43: =AT52 -> 0
B44: 2 | C44: =E44-G44 -> 555.55 | D44: =IF(E44=0,"",C45) -> v/ex | E44: =IF(E37+G37=0,0,IF(SUM(E37:E43)>SUM(G37:G43),0,SUM(G37:G43)-SUM(E37:E43))) -> 555.55 | F44: =IF(G44=0,"",C45) ->  | G44: =IF(E37+G37=0,0,IF(SUM(G37:G43)>SUM(E37:E43),0,SUM(E37:E43)-SUM(G37:G43))) -> 0.00 | H44: 1 | I44: =K44-M44 -> -134.25 | J44: =IF(K44=0,"",I45) ->  | K44: =IF(K37+M37=0,0,IF(SUM(K37:K43)>SUM(M37:M43),0,SUM(M37:M43)-SUM(K37:K43))) -> 0.00 | L44: =IF(M44=0,"",I45) -> v/ex | M44: =IF(K37+M37=0,0,IF(SUM(M37:M43)>SUM(K37:K43),0,SUM(K37:K43)-SUM(M37:M43))) -> 134.25 | N44: 3 | O44: =Q44-S44 -> -54.40 | P44: =IF(Q44=0,"",O45) ->  | Q44: =IF(Q37+S37=0,0,IF(SUM(Q37:Q43)>SUM(S37:S43),0,SUM(S37:S43)-SUM(Q37:Q43))) -> 0.00 | R44: =IF(S44=0,"",O45) -> v/ex | S44: =IF(Q37+S37=0,0,IF(SUM(S37:S43)>SUM(Q37:Q43),0,SUM(Q37:Q43)-SUM(S37:S43))) -> 54.40 | T44: 4 | U44: =W44-Y44 -> 0.00 | V44: =IF(W44=0,"",U45) ->  | W44: =IF(W37+Y37=0,0,IF(SUM(W37:W43)>SUM(Y37:Y43),0,SUM(Y37:Y43)-SUM(W37:W43))) -> 0.00 | X44: =IF(Y44=0,"",U45) ->  | Y44: =IF(W37+Y37=0,0,IF(SUM(Y37:Y43)>SUM(W37:W43),0,SUM(W37:W43)-SUM(Y37:Y43))) -> 0.00 | AB44: =AD44-AF44 -> 0.00 | AC44: =IF(AD44=0,"",AB45) ->  | AD44: =IF(AD37+AF37=0,0,IF(SUM(AD37:AD43)>SUM(AF37:AF43),0,SUM(AF37:AF43)-SUM(AD37:AD43))) -> 0.00 | AE44: =IF(AF44=0,"",AB45) ->  | AF44: =IF(AD37+AF37=0,0,IF(SUM(AF37:AF43)>SUM(AD37:AD43),0,SUM(AD37:AD43)-SUM(AF37:AF43))) -> 0.00 | AH44: =AJ44-AL44 -> 0.00 | AI44: =IF(AJ44=0,"",AH45) ->  | AJ44: =IF(AJ37+AL37=0,0,IF(SUM(AJ37:AJ43)>SUM(AL37:AL43),0,SUM(AL37:AL43)-SUM(AJ37:AJ43))) -> 0.00 | AK44: =IF(AL44=0,"",AH45) ->  | AL44: =IF(AJ37+AL37=0,0,IF(SUM(AL37:AL43)>SUM(AJ37:AJ43),0,SUM(AJ37:AJ43)-SUM(AL37:AL43))) -> 0.00 | AN44: =AP44-AR44 -> 0.00 | AO44: =IF(AP44=0,"",AN45) ->  | AP44: =IF(AP37+AR37=0,0,IF(SUM(AP37:AP43)>SUM(AR37:AR43),0,SUM(AR37:AR43)-SUM(AP37:AP43))) -> 0.00 | AQ44: =IF(AR44=0,"",AN45) ->  | AR44: =IF(AP37+AR37=0,0,IF(SUM(AR37:AR43)>SUM(AP37:AP43),0,SUM(AP37:AP43)-SUM(AR37:AR43))) -> 0.00 | AT44: =AV44-AX44 -> 0.00 | AU44: =IF(AV44=0,"",AT45) ->  | AV44: =IF(AV37+AX37=0,0,IF(SUM(AV37:AV43)>SUM(AX37:AX43),0,SUM(AX37:AX43)-SUM(AV37:AV43))) -> 0.00 | AW44: =IF(AX44=0,"",AT45) ->  | AX44: =IF(AV37+AX37=0,0,IF(SUM(AX37:AX43)>SUM(AV37:AV43),0,SUM(AV37:AV43)-SUM(AX37:AX43))) -> 0.00 | BC44: 2 | BD44: 7 | BE44: =AT53 -> 0 | BF44: 0 | BG44: 0 | BH44: =AT53 -> 0
C45: =IF(B44="","spb",IF(B44>40,"v/bi","v/ex")) -> v/ex | E45: =IF(E37+G37=0,"",SUM(E37:E44)) -> 585.00 | G45: =IF(E37+G37=0,"",SUM(G37:G44)) -> 585.00 | I45: =IF(H44="","spb",IF(H44>40,"v/bi","v/ex")) -> v/ex | K45: =IF(K37+M37=0,"",SUM(K37:K44)) -> 138.50 | M45: =IF(K37+M37=0,"",SUM(M37:M44)) -> 138.50 | O45: =IF(N44="","spb",IF(N44>40,"v/bi","v/ex")) -> v/ex | Q45: =IF(Q37+S37=0,"",SUM(Q37:Q44)) -> 54.40 | S45: =IF(Q37+S37=0,"",SUM(S37:S44)) -> 54.40 | U45: =IF(T44="","spb",IF(T44>40,"v/bi","v/ex")) -> v/ex | W45: =IF(W37+Y37=0,"",SUM(W37:W44)) ->  | Y45: =IF(W37+Y37=0,"",SUM(Y37:Y44)) ->  | AB45: =IF(AA44="","spb",IF(AA44>40,"v/bi","v/ex")) -> spb | AD45: =IF(AD37+AF37=0,"",SUM(AD37:AD44)) ->  | AF45: =IF(AD37+AF37=0,"",SUM(AF37:AF44)) ->  | AH45: =IF(AG44="","spb",IF(AG44>40,"v/bi","v/ex")) -> spb | AJ45: =IF(AJ37+AL37=0,"",SUM(AJ37:AJ44)) ->  | AL45: =IF(AJ37+AL37=0,"",SUM(AL37:AL44)) ->  | AN45: =IF(AM44="","spb",IF(AM44>40,"v/bi","v/ex")) -> spb | AP45: =IF(AP37+AR37=0,"",SUM(AP37:AP44)) ->  | AR45: =IF(AP37+AR37=0,"",SUM(AR37:AR44)) ->  | AT45: =IF(AS44="","spb",IF(AS44>40,"v/bi","v/ex")) -> spb | AV45: =IF(AV37+AX37=0,"",SUM(AV37:AV44)) ->  | AX45: =IF(AV37+AX37=0,"",SUM(AX37:AX44)) ->  | BC45: 1 | BD45: 8 | BE45: =AT54 -> 0 | BH45: =AT54 -> 0
BC46: 1
B47: 22 | D47: =IF(B47=0,"",VLOOKUP(B47,Libellés!B12:J37,2)) -> Toutes les écritures sont comptabilisées | BB47: Ges col. | BC47: 2 | BD47: 9 | BE47: =AT55 -> 0 | BF47: =AU45 -> 0 | BG47: 0 | BH47: =AT55 -> 0
BC48: 1 | BD48: 10 | BE48: =AT58 -> 0 | BF48: =AU47 -> 0 | BG48: 0 | BH48: =AT58 -> 0
BC49: 1
D50: 9000 Résultat | N50: B I L A N final | BB50: 1 | BC50: 2 | BD50: 11 | BE50: =AT59 -> 0 | BF50: =AU48 -> 0 | BG50: 0 | BH50: =AT59 -> 0
B51: 1 | D51: =IF(E51=0,"",VLOOKUP(B51,table,4,FALSE)) -> 4200 | E51: =VLOOKUP(B51,table,2,FALSE) -> 134.25 | F51: =IF(G51=0,"",VLOOKUP(H51,table,4,FALSE)) -> 3200 | G51: =VLOOKUP(H51,table,2,FALSE) -> 555.55 | H51: 2 | N51: Actif | T51: Passif | BB51: TRUE | BC51: 1 | BD51: 12 | BE51: =AT65 -> 0 | BF51: =AU50 -> 0 | BG51: 0 | BH51: =AT65 -> 0
B52: 3 | D52: =IF(E52=0,"",VLOOKUP(B52,table,4,FALSE)) -> 4300 | E52: =VLOOKUP(B52,table,2,FALSE) -> 54.40 | F52: =IF(G52=0,"",VLOOKUP(H52,table,4,FALSE)) ->  | G52: =VLOOKUP(H52,table,2,FALSE) -> 0.00 | H52: 4 | M52: 41 | N52: =IF(S52=0,"",VLOOKUP(M52,table,3,FALSE)) -> 1000 Caisse | S52: =VLOOKUP(M52,table,2,FALSE) -> 1,560.00 | T52: =IF(Y52=0,"",VLOOKUP(Z52,table,3,FALSE)) -> 2000 Fournisseurs | Y52: =VLOOKUP(Z52,table,2,FALSE) -> 3,000.00 | Z52: 42 | BB52: TRUE | BC52: 2 | BD52: 13 | BE52: 0 | BF52: 0 | BG52: 0 | BH52: 0
B53: 5 | E53: 0.00 | G53: 0.00 | H53: 6 | M53: 43 | N53: 1010 Poste | S53: 2,955.00 | T53: 2200 TVA due | Y53: 44.45 | Z53: 44 | BB53: TRUE | BC53: 1 | BD53: 14 | BE53: 0 | BF53: 0 | BG53: 0 | BH53: 0
B54: 7 | E54: 0.00 | G54: 0.00 | H54: 8 | M54: 45 | N54: 1020 Banque | S54: 19,941.25 | T54: 2800 Capital | Y54: 32,550.00 | Z54: 46 | BB54: TRUE | BC54: 2 | BD54: 15 | BE54: 0 | BF54: 0 | BG54: 0 | BH54: 0
B55: 9 | E55: 0.00 | G55: 0.00 | H55: 10 | M55: 47 | N55: 1060 Titres | S55: 6,000.00 | Y55: 0.00 | Z55: 48 | BB55: TRUE | BC55: 1 | BD55: 16 | BE55: 0 | BF55: 0 | BG55: 0 | BH55: 0
B56: 11 | E56: 0.00 | G56: 0.00 | H56: 12 | M56: 49 | N56: 1100 Débiteurs | S56: 4,200.00 | Y56: 0.00 | Z56: 50 | BB56: TRUE | BC56: 2 | BD56: 17 | BE56: 0 | BF56: 0 | BG56: 0 | BH56: 0
B57: 13 | E57: 0.00 | G57: 0.00 | H57: 14 | M57: 51 | N57: 1170 Impôt préalable I | S57: 15.10 | Y57: 0.00 | Z57: 52 | BB57: TRUE | BC57: 1 | BD57: 18 | BE57: 0 | BF57: 0 | BG57: 0 | BH57: 0
B58: 15 | E58: 0.00 | G58: 0.00 | H58: 16 | M58: 53 | N58: =IF(S58=0,"",VLOOKUP(M58,table,3,FALSE)) -> 1171 Impôt préalable II | S58: 95.55 | T58: =IF(Y58=0,"",VLOOKUP(Z58,table,3,FALSE)) ->  | Y58: 0.00 | Z58: 54 | BB58: TRUE | BC58: 2 | BD58: 19 | BE58: 0 | BF58: 0 | BG58: 0 | BH58: 0
B59: 17 | E59: 0.00 | G59: 0.00 | H59: 18 | M59: 55 | N59: 1520 Informatique | S59: 1,194.45 | Y59: 0.00 | Z59: 56 | BC59: 1 | BD59: 20 | BE59: 0 | BF59: 0 | BG59: 0 | BH59: 0
B60: 19 | E60: 0.00 | G60: 0.00 | H60: 20 | M60: 57 | S60: 0.00 | Y60: 0.00 | Z60: 58 | BC60: =IF(INT(BD60/2)=BD60/2,1,2) -> 2 | BD60: 21 | BE60: 0 | BF60: 0 | BG60: 0 | BH60: 0
B61: 21 | E61: 0.00 | G61: 0.00 | H61: 22 | M61: 59 | S61: 0.00 | Y61: 0.00 | Z61: 60 | BC61: 1 | BD61: 22 | BE61: 0 | BF61: 0 | BG61: 0 | BH61: 0
B62: 23 | E62: 0.00 | G62: 0.00 | H62: 24 | M62: 61 | S62: 0.00 | Y62: 0.00 | Z62: 62 | BC62: 2 | BD62: 23 | BE62: 0 | BF62: 0 | BG62: 0 | BH62: 0
B63: 25 | E63: 0.00 | G63: 0.00 | H63: 26 | M63: 63 | S63: 0.00 | Y63: 0.00 | Z63: 64 | BC63: 1 | BD63: 24 | BE63: 0 | BF63: 0 | BG63: 0 | BH63: 0
B64: 27 | E64: 0.00 | G64: 0.00 | H64: 28 | M64: 65 | S64: 0.00 | Y64: 0.00 | Z64: 66 | BC64: 2 | BD64: 25 | BE64: 0 | BF64: 0 | BG64: 0 | BH64: 0
B65: 29 | E65: 0.00 | G65: 0.00 | H65: 30 | M65: 67 | S65: 0.00 | Y65: 0.00 | Z65: 68 | BC65: 1 | BD65: 26 | BE65: 0 | BF65: 0 | BG65: 0 | BH65: 0
C66: =E66-G66 -> 366.90 | D66: =IF(E66=0,"","spb") -> spb | E66: =IF(SUM(E51:E65)>SUM(G51:G65),0,SUM(G51:G65)-SUM(E51:E65)) -> 366.90 | F66: =IF(G66=0,"","spb") ->  | G66: =IF(SUM(G51:G65)>SUM(E51:E65),0,SUM(E51:E65)-SUM(G51:G65)) -> 0.00 | R66: =IF(S66=0,"","spb") ->  | S66: =IF(SUM(S52:S65)>SUM(Y52:Y65),0,SUM(Y52:Y65)-SUM(S52:S65)) -> 0.00 | X66: =IF(Y66=0,"","spb") -> spb | Y66: =IF(SUM(Y52:Y65)>SUM(S52:S65),0,SUM(S52:S65)-SUM(Y52:Y65)) -> 366.90 | BC66: 2 | BD66: 27 | BE66: 0 | BF66: 0 | BG66: 0 | BH66: 0
E67: =SUM(E51:E66) -> 555.55 | G67: =SUM(G51:G66) -> 555.55 | S67: =SUM(S52:S66) -> 35,961.35 | Y67: =SUM(Y52:Y66) -> 35,961.35 | BC67: 1 | BD67: 28 | BE67: 0 | BF67: 0 | BG67: 0 | BH67: 0
BC68: 2 | BD68: 29 | BE68: 0 | BF68: 0 | BG68: 0 | BH68: 0
BC69: 1 | BD69: 30 | BE69: 0 | BF69: 0 | BG69: 0 | BH69: 0
BC71: =IF(INT(BD71/2)=BD71/2,1,2) -> 2 | BD71: 41 | BE71: =AT74 -> 0 | BF71: =AU59 -> 0 | BG71: =LEFT(BF71,4) -> 0 | BH71: =AT74 -> 0
BC72: =IF(INT(BD72/2)=BD72/2,1,2) -> 1 | BD72: 42 | BE72: =AT75 -> 0 | BF72: =AU60 -> 0 | BG72: =LEFT(BF72,4) -> 0 | BH72: =AT75 -> 0
BC73: 2 | BD73: 43 | BE73: 0 | BF73: 0 | BG73: 0 | BH73: 0
BC74: 1 | BD74: 44 | BE74: 0 | BF74: 0 | BG74: 0 | BH74: 0
K75: TRUE | BC75: 2 | BD75: 45 | BE75: 0 | BF75: 0 | BG75: 0 | BH75: 0
K76: 2 | BC76: 1 | BD76: 46 | BE76: 0 | BF76: 0 | BG76: 0 | BH76: 0
K77: 1 | BC77: 2 | BD77: 47 | BE77: 0 | BF77: 0 | BG77: 0 | BH77: 0
K78: 1 | BC78: 1 | BD78: 48 | BE78: 0 | BF78: 0 | BG78: 0 | BH78: 0
K79: TRUE | BC79: 2 | BD79: 49 | BE79: 0 | BF79: 0 | BG79: 0 | BH79: 0
BC80: 1 | BD80: 50 | BE80: 0 | BF80: 0 | BG80: 0 | BH80: 0
BC81: 2 | BD81: 51 | BE81: 0 | BF81: 0 | BG81: 0 | BH81: 0
BC82: 1 | BD82: 52 | BE82: 0 | BF82: 0 | BG82: 0 | BH82: 0
BC83: 2 | BD83: 53 | BE83: 0 | BF83: 0 | BG83: 0 | BH83: 0
BC84: 1 | BD84: 54 | BE84: 0 | BF84: 0 | BG84: 0 | BH84: 0
BC85: 2 | BD85: 55 | BE85: 0 | BF85: 0 | BG85: 0 | BH85: 0
BC86: 1 | BD86: 56 | BE86: 0 | BF86: 0 | BG86: 0 | BH86: 0
BC87: 2 | BD87: 57 | BE87: 0 | BF87: 0 | BG87: 0 | BH87: 0
BC88: 1 | BD88: 58 | BE88: 0 | BF88: 0 | BG88: 0 | BH88: 0
BC89: 2 | BD89: 59 | BE89: 0 | BF89: 0 | BG89: 0 | BH89: 0
BC90: 1 | BD90: 60 | BE90: 0 | BF90: 0 | BG90: 0 | BH90: 0
BC91: 2 | BD91: 61 | BE91: 0 | BF91: 0 | BG91: 0 | BH91: 0
BC92: 1 | BD92: 62 | BE92: 0 | BF92: 0 | BG92: 0 | BH92: 0
BC93: 2 | BD93: 63 | BE93: 0 | BF93: 0 | BG93: 0 | BH93: 0
BC94: 1 | BD94: 64 | BE94: 0 | BF94: 0 | BG94: 0 | BH94: 0
BC95: 2 | BD95: 65 | BE95: 0 | BF95: 0 | BG95: 0 | BH95: 0
BC96: 1 | BD96: 66 | BE96: 0 | BF96: 0 | BG96: 0 | BH96: 0
B97: TRUE | D97: FALSE | E97: FALSE | BC97: 2 | BD97: 67 | BE97: 0 | BF97: 0 | BG97: 0 | BH97: 0
D98: FALSE | G98: non | BC98: 1 | BD98: 68 | BE98: 0 | BF98: 0 | BG98: 0 | BH98: 0
B99: Symboles de
B100: Schmalenbach
G101: zoom | H101: 100
D107: 9000 Résultat | P107: 9000 Résultat
B108: 1 | D108: =IF(E108=0,"",VLOOKUP(B108,table,4,FALSE)) -> 4200 | E108: =VLOOKUP(B108,table,2,FALSE) -> 134.25 | F108: =IF(G108=0,"",VLOOKUP(H108,table,4,FALSE)) -> 3200 | G108: =VLOOKUP(H108,table,2,FALSE) -> 555.55 | H108: 2 | N108: 1 | P108: =IF(Q108=0,"",VLOOKUP(N108,table,4,FALSE)) -> 4200 | Q108: =VLOOKUP(N108,table,2,FALSE) -> 134.25 | R108: =IF(S108=0,"",VLOOKUP(T108,table,4,FALSE)) -> 3200 | S108: =VLOOKUP(T108,table,2,FALSE) -> 555.55 | T108: 2
B109: 3 | D109: =IF(E109=0,"",VLOOKUP(B109,table,4,FALSE)) -> 4300 | E109: =VLOOKUP(B109,table,2,FALSE) -> 54.40 | F109: =IF(G109=0,"",VLOOKUP(H109,table,4,FALSE)) ->  | G109: =VLOOKUP(H109,table,2,FALSE) -> 0.00 | H109: 4 | N109: 3 | P109: =IF(Q109=0,"",VLOOKUP(N109,table,4,FALSE)) -> 4300 | Q109: =VLOOKUP(N109,table,2,FALSE) -> 54.40 | R109: =IF(S109=0,"",VLOOKUP(T109,table,4,FALSE)) ->  | S109: =VLOOKUP(T109,table,2,FALSE) -> 0.00 | T109: 4
B110: 5 | D110: =IF(E110=0,"",VLOOKUP(B110,table,4,FALSE)) ->  | E110: =VLOOKUP(B110,table,2,FALSE) -> 0.00 | F110: =IF(G110=0,"",VLOOKUP(H110,table,4,FALSE)) ->  | G110: =VLOOKUP(H110,table,2,FALSE) -> 0.00 | H110: 6 | N110: 5 | Q110: 0.00 | S110: 0.00 | T110: 6
B111: 7 | D111: =IF(E111=0,"",VLOOKUP(B111,table,4,FALSE)) ->  | E111: =VLOOKUP(B111,table,2,FALSE) -> 0.00 | F111: =IF(G111=0,"",VLOOKUP(H111,table,4,FALSE)) ->  | G111: =VLOOKUP(H111,table,2,FALSE) -> 0.00 | H111: 8 | N111: 7 | Q111: 0.00 | S111: 0.00 | T111: 8
D112: =IF(E112=0,"","BB") -> BB | E112: =IF(SUM(E108:E111)>SUM(G108:G111),0,SUM(G108:G111)-SUM(E108:E111)) -> 366.90 | F112: =IF(G112=0,"","PB") ->  | G112: =IF(SUM(G108:G111)>SUM(E108:E111),0,SUM(E108:E111)-SUM(G108:G111)) -> 0.00 | N112: 9 | Q112: 0.00 | S112: 0.00 | T112: 10
E113: =SUM(E108:E112) -> 555.55 | G113: =SUM(G108:G112) -> 555.55 | N113: 11 | Q113: 0.00 | S113: 0.00 | T113: 12
D114: =F112 ->  | E114: =G112 -> 0.00 | F114: =D112 -> BB | G114: =E112 -> 366.90 | N114: 13 | Q114: 0.00 | S114: 0.00 | T114: 14
B115: 15 | D115: =IF(E115=0,"",VLOOKUP(B115,table,4,FALSE)) ->  | E115: =VLOOKUP(B115,table,2,FALSE) -> 0.00 | F115: =IF(G115=0,"",VLOOKUP(H115,table,4,FALSE)) ->  | G115: =VLOOKUP(H115,table,2,FALSE) -> 0.00 | H115: 16 | N115: 15 | Q115: 0.00 | S115: 0.00 | T115: 16
B116: 17 | E116: 0.00 | G116: 0.00 | H116: 18 | N116: 17 | P116: =IF(Q116=0,"",VLOOKUP(N116,table,4,FALSE)) ->  | Q116: =VLOOKUP(N116,table,2,FALSE) -> 0.00 | R116: =IF(S116=0,"",VLOOKUP(T116,table,4,FALSE)) ->  | S116: =VLOOKUP(T116,table,2,FALSE) -> 0.00 | T116: 18
B117: 19 | E117: 0.00 | G117: 0.00 | H117: 20 | N117: 19 | Q117: 0.00 | S117: 0.00 | T117: 20
B118: 21 | E118: 0.00 | G118: 0.00 | H118: 22 | N118: 21 | Q118: 0.00 | S118: 0.00 | T118: 22
B119: 23 | E119: 0.00 | G119: 0.00 | H119: 24 | N119: 23 | Q119: 0.00 | S119: 0.00 | T119: 24
B120: 25 | E120: 0.00 | G120: 0.00 | H120: 26 | N120: 25 | Q120: 0.00 | S120: 0.00 | T120: 26
B121: 27 | E121: 0.00 | G121: 0.00 | H121: 28 | N121: 27 | Q121: 0.00 | S121: 0.00 | T121: 28
B122: 29 | E122: 0.00 | G122: 0.00 | H122: 30 | N122: 29 | Q122: 0.00 | S122: 0.00 | T122: 30
C123: =E123-G123 -> 366.90 | D123: =IF(E123=0,"","BN") -> BN | E123: =IF(SUM(E114:E122)>SUM(G114:G122),0,SUM(G114:G122)-SUM(E114:E122)) -> 366.90 | F123: =IF(G123=0,"","PN") ->  | G123: =IF(SUM(G114:G122)>SUM(E114:E122),0,SUM(E114:E122)-SUM(G114:G122)) -> 0.00 | O123: =Q123-S123 -> 366.90 | P123: =IF(Q123=0,"","spb") -> spb | Q123: =IF(SUM(Q108:Q122)>SUM(S108:S122),0,SUM(S108:S122)-SUM(Q108:Q122)) -> 366.90 | R123: =IF(S123=0,"","spb") ->  | S123: =IF(SUM(S108:S122)>SUM(Q108:Q122),0,SUM(Q108:Q122)-SUM(S108:S122)) -> 0.00
E124: =SUM(E114:E123) -> 366.90 | G124: =SUM(G114:G123) -> 366.90 | Q124: =SUM(Q108:Q123) -> 555.55 | S124: =SUM(S108:S123) -> 555.55
D129: =IF(B129="","",B129 & " " & VLOOKUP(B129,Plancompta,2)) ->  | P129: =IF(N129="","",N129 & " " & VLOOKUP(N129,Plancompta,2)) -> 
O137: =Q137+S137 -> 0.00 | P137: =IF(Q137=0,"",O138) ->  | Q137: =IF(Q130+S130=0,0,IF(SUM(Q130:Q136)>SUM(S130:S136),0,SUM(S130:S136)-SUM(Q130:Q136))) -> 0.00 | R137: =IF(S137=0,"",O138) ->  | S137: =IF(Q130+S130=0,0,IF(SUM(S130:S136)>SUM(Q130:Q136),0,SUM(Q130:Q136)-SUM(S130:S136))) -> 0.00
O138: =IF(N137="","spb",IF(N137>40,"v/bi","v/ex")) -> spb | Q138: =IF(Q130+S130=0,"",SUM(Q130:Q137)) ->  | S138: =IF(Q130+S130=0,"",SUM(S130:S137)) -> 
P139: =IF(N140="","",VLOOKUP(N140,Plancompta,3)) ->  | S139: =IF(N140="","",VLOOKUP(N140,Plancompta,4)) -> 
P140: =IF(N140="","",N140 & " " & VLOOKUP(N140,Plancompta,2)) -> 
C148: =E148-G148 -> 0.00 | D148: =IF(E148=0,"",C149) ->  | E148: =IF(E130+G130=0,0,IF(SUM(E130:E147)>SUM(G130:G147),0,SUM(G130:G147)-SUM(E130:E147))) -> 0.00 | F148: =IF(G148=0,"",C149) ->  | G148: =IF(E130+G130=0,0,IF(SUM(G130:G147)>SUM(E130:E147),0,SUM(E130:E147)-SUM(G130:G147))) -> 0.00 | O148: =Q148+S148 -> 0.00 | P148: =IF(Q148=0,"",O149) ->  | Q148: =IF(Q141+S141=0,0,IF(SUM(Q141:Q147)>SUM(S141:S147),0,SUM(S141:S147)-SUM(Q141:Q147))) -> 0.00 | R148: =IF(S148=0,"",O149) ->  | S148: =IF(Q141+S141=0,0,IF(SUM(S141:S147)>SUM(Q141:Q147),0,SUM(Q141:Q147)-SUM(S141:S147))) -> 0.00
C149: =IF(B148="","spb",IF(B148>40,"v/bi","v/ex")) -> spb | E149: =IF(E130+G130=0,"",SUM(E130:E148)) ->  | G149: =IF(E130+G130=0,"",SUM(G130:G148)) ->  | O149: =IF(N148="","spb",IF(N148>40,"v/bi","v/ex")) -> spb | Q149: =IF(Q141+S141=0,"",SUM(Q141:Q148)) ->  | S149: =IF(Q141+S141=0,"",SUM(S141:S148)) -> 

Sheet Libellés
B1: Libellés
B3: Les libellés donnés ci-dessous correspondent aux boutons. Ils sont affichés automatiquement
B5: lorsqu'un bouton est activé.
B11: Bouton | C11: Libellé
B12: 0 | C12: Sàn | K12: Ce libellé ne s'affiche pas
B13: 1 | C13: Déb. Fleur-de-Lys, facturé brut CHF 631.80, net 585.-
B14: 2 | C14: Four. Cellulose, brut CHF 149.60, net 138.50
B15: 3 | C15: Déb. Fleur-de-Lys, payé CHF 600.- sur facture de 631.8-
B16: 4 | C16: Four. Cellulose, notre versement CHF 145.- sur fac. de CHF 149.60
B17: 5 | C17: MIGROL achat benzine - EC brut CHF 58.75, net 54.40
B18: 6 | C18: MEDIA MARKT, achat ordinateur, brut 1290.-, net 1194.45
B19: 7
B20: 8
B21: 9
B22: 10
B23: 11
B24: 12
B25: 13
B26: 14
B27: 15
B28: 16
B29: 17
B30: 18
B31: 19
B32: 20
B33: 21
B34: 22 | C34: Toutes les écritures sont comptabilisées
C35: Version TVA 8% | K35: boutons et macros à rajouter !
C38: =COUNTA(C12:J33) -> 7

Sheet Renseignements
H2: Entrer dans ces carrés le numéro du compte selon le plan comptable de la feuille 3
B5: 1000 | D5: 1000 Caisse | H5: 1010 | J5: 1010 Poste | N5: 2000 | P5: 2000 Fournisseurs | V5: Blablabla
D6: 1) | E6: 100.00 | J6: san | K6: 2,000.00 | L6: 1) | M6: 100.00 | R6: san | S6: 300.00 | V6: 3) | W6: 20.00 | AE6: table
F7: 3) | G7: 20.00 | L7: 2) | M7: 120.00 | P7: 2) | Q7: 120.00 | V7: 4) | W7: 30.00 | AE7: =B13 -> 41 | AF7: =C13 -> 80.00 | AG7: =D5 -> 1000 Caisse | AH7: =LEFT(AG7,4) -> 1000
L8: 4) | M8: 30.00 | AE8: =H13 -> 43 | AF8: =I13 -> 1,750.00 | AG8: =J5 -> 1010 Poste | AH8: 1010
AE9: =N13 -> 42 | AF9: =O13 -> 180.00 | AG9: =P5 -> 2000 Fournisseurs | AH9: 2000
AE10: =T13 -> 1 | AF10: =U13 -> 50.00 | AG10: =V5 -> Blablabla | AH10: Blab
AE11: =B24 -> 0 | AF11: =C24 -> 0.00 | AG11: =D16 -> 0 | AH11: 0
AE12: =H24 -> 0 | AF12: =I24 -> 0.00 | AG12: =J16 -> 0 | AH12: 0
B13: 41 | C13: =E13+G13 -> 80.00 | D13: =IF(E13=0,"",B14) ->  | E13: =IF(E6+G6=0,0,IF(SUM(E6:E12)>SUM(G6:G12),0,SUM(G6:G12)-SUM(E6:E12))) -> 0.00 | F13: =IF(G13=0,"",B14) -> v/b. | G13: =IF(E6+G6=0,0,IF(SUM(G6:G12)>SUM(E6:E12),0,SUM(E6:E12)-SUM(G6:G12))) -> 80.00 | H13: 43 | I13: =K13+M13 -> 1,750.00 | J13: =IF(K13=0,"",H14) ->  | K13: =IF(K6+M6=0,0,IF(SUM(K6:K12)>SUM(M6:M12),0,SUM(M6:M12)-SUM(K6:K12))) -> 0.00 | L13: =IF(M13=0,"",H14) -> v/b. | M13: =IF(K6+M6=0,0,IF(SUM(M6:M12)>SUM(K6:K12),0,SUM(K6:K12)-SUM(M6:M12))) -> 1,750.00 | N13: 42 | O13: =Q13+S13 -> 180.00 | P13: =IF(Q13=0,"",N14) -> v/b. | Q13: =IF(Q6+S6=0,0,IF(SUM(Q6:Q12)>SUM(S6:S12),0,SUM(S6:S12)-SUM(Q6:Q12))) -> 180.00 | R13: =IF(S13=0,"",N14) ->  | S13: =IF(Q6+S6=0,0,IF(SUM(S6:S12)>SUM(Q6:Q12),0,SUM(Q6:Q12)-SUM(S6:S12))) -> 0.00 | T13: 1 | U13: =W13+Y13 -> 50.00 | V13: =IF(W11=0,"",T12) ->  | W13: =IF(W6+Y6=0,0,IF(SUM(W6:W12)>SUM(Y6:Y12),0,SUM(Y6:Y12)-SUM(W6:W12))) -> 0.00 | X13: =IF(Y13=0,"",T14) -> v/e | Y13: =IF(W6+Y6=0,0,IF(SUM(Y6:Y12)>SUM(W6:W12),0,SUM(W6:W12)-SUM(Y6:Y12))) -> 50.00 | AE13: =N24 -> 0 | AF13: =O24 -> 0.00 | AG13: =P16 -> 0 | AH13: 0
B14: =IF(B13="","spb",IF(B13>20,"v/b.","v/e")) -> v/b. | E14: =IF(E6+G6=0,"",SUM(E6:E13)) -> 100.00 | G14: =IF(E6+G6=0,"",SUM(G6:G13)) -> 100.00 | H14: =IF(H13="","spb",IF(H13>20,"v/b.","v/e")) -> v/b. | K14: =IF(K6+M6=0,"",SUM(K6:K13)) -> 2,000.00 | M14: =IF(K6+M6=0,"",SUM(M6:M13)) -> 2,000.00 | N14: =IF(N13="","spb",IF(N13>20,"v/b.","v/e")) -> v/b. | Q14: =IF(Q6+S6=0,"",SUM(Q6:Q13)) -> 300.00 | S14: =IF(Q6+S6=0,"",SUM(S6:S13)) -> 300.00 | T14: =IF(T13="","spb",IF(T13>20,"v/b.","v/e")) -> v/e | W14: =IF(W6+Y6=0,"",SUM(W6:W13)) -> 50.00 | Y14: =IF(W6+Y6=0,"",SUM(Y6:Y13)) -> 50.00 | AE14: =T24 -> 0 | AF14: =U24 -> 0.00 | AG14: =V16 -> 0 | AH14: 0
AE15: =B35 -> 0 | AF15: =C35 -> 0.00 | AG15: =D27 -> 0 | AH15: 0
AE16: =H35 -> 0 | AF16: =I35 -> 0.00 | AG16: =J27 -> 0 | AH16: 0
AE17: =N35 -> 0 | AF17: =O35 -> 0.00 | AG17: =P27 -> 0 | AH17: 0
AE18: =T35 -> 0 | AF18: =U35 -> 0.00 | AG18: =V27 -> 0 | AH18: 0
AE19: =B46 -> 0 | AF19: =C46 -> 0.00 | AG19: =D38 -> 0 | AH19: 0
AE20: =H46 -> 0 | AF20: =I46 -> 0.00 | AG20: =J38 -> 0 | AH20: 0
AE21: =N46 -> 0 | AF21: =O46 -> 0.00 | AG21: =P38 -> 0 | AH21: 0
AE22: =T46 -> 0 | AF22: =U46 -> 0.00 | AG22: =V38 -> 0 | AH22: 0
AE23: =B58 -> 68 | AF23: =C58 -> 50.00 | AG23: =D50 -> 9000 Résultat | AH23: 9000
AE24: 1 | AF24: 0
AE25: 2 | AF25: 0
AE26: 3 | AF26: 0
AE27: 4 | AF27: 0
AE28: 5 | AF28: 0
AE29: 6 | AF29: 0
AE30: 7 | AF30: 0
AE31: 8 | AF31: 0
AE32: 9 | AF32: 0
AE33: 10 | AF33: 0
AE34: 11 | AF34: 0
AE35: 12 | AF35: 0
AE36: 13 | AF36: 0
AE37: 14 | AF37: 0
AE38: 15 | AF38: 0
AE39: 16 | AF39: 0
AE40: 17 | AF40: 0
AE41: 18 | AF41: 0
AE42: 19 | AF42: 0
AE43: 20 | AF43: 0
AE44: 41 | AF44: 0
AE45: 42 | AF45: 0
AE46: 43 | AF46: 0
AE47: 44 | AF47: 0
AE48: 45 | AF48: 0
AE49: 46 | AF49: 0
D50: 9000 Résultat | N50: B I L A N final | AE50: 47 | AF50: 0
B51: 1 | D51: =IF(E51=0,"",VLOOKUP(B51,table,4,FALSE)) -> Blab | E51: =VLOOKUP(B51,table,2,FALSE) -> 50.00 | F51: =IF(G51=0,"",VLOOKUP(H51,table,4,FALSE)) ->  | G51: =VLOOKUP(H51,table,2,FALSE) -> 0.00 | H51: 2 | N51: Actif | T51: Passif | AE51: 48 | AF51: 0
B52: 3 | E52: 0.00 | G52: 0.00 | H52: 4 | M52: 41 | N52: =IF(S52=0,"",VLOOKUP(M52,table,3,FALSE)) -> 1000 Caisse | S52: =VLOOKUP(M52,table,2,FALSE) -> 80.00 | T52: =IF(Y52=0,"",VLOOKUP(Z52,table,3,FALSE)) -> 2000 Fournisseurs | Y52: =VLOOKUP(Z52,table,2,FALSE) -> 180.00 | Z52: 42 | AE52: 49 | AF52: 0
B53: 5 | E53: 0.00 | G53: 0.00 | H53: 6 | M53: 43 | N53: =IF(S53=0,"",VLOOKUP(M53,table,3,FALSE)) -> 1010 Poste | S53: 1,750.00 | T53: =IF(Y53=0,"",VLOOKUP(Z53,table,3,FALSE)) ->  | Y53: =VLOOKUP(Z53,table,2,FALSE) -> 0.00 | Z53: 44 | AE53: 50 | AF53: 0
B54: 7 | E54: 0.00 | G54: 0.00 | H54: 8 | M54: 45 | N54: =IF(S54=0,"",VLOOKUP(M54,table,3,FALSE)) ->  | S54: 0.00 | T54: =IF(Y54=0,"",VLOOKUP(Z54,table,3,FALSE)) ->  | Y54: =VLOOKUP(Z54,table,2,FALSE) -> 0.00 | Z54: 46 | AE54: 51 | AF54: 0
B55: 9 | E55: 0.00 | G55: 0.00 | H55: 10 | M55: 47 | S55: 0.00 | Y55: 0.00 | Z55: 48 | AE55: 52 | AF55: 0
B56: 11 | E56: 0.00 | G56: 0.00 | H56: 12 | M56: 49 | S56: 0.00 | Y56: 0.00 | Z56: 50 | AE56: 53 | AF56: 0
B57: 13 | E57: 0.00 | H57: 14 | M57: 51 | S57: 0.00 | Y57: 0.00 | Z57: 52 | AE57: 54 | AF57: 0
B58: 68 | C58: =E58+G58 -> 50.00 | D58: =IF(E58=0,"","spb") ->  | E58: =IF(E51+G51=0,0,IF(SUM(E51:E57)>SUM(G51:G57),0,SUM(G51:G57)-SUM(E51:E57))) -> 0.00 | F58: =IF(G58=0,"","spb") -> spb | G58: =IF(E51+G51=0,0,IF(SUM(G51:G57)>SUM(E51:E57),0,SUM(E51:E57)-SUM(G51:G57))) -> 50.00 | M58: 53 | S58: =VLOOKUP(M58,table,2,FALSE) -> 0.00 | Y58: 0.00 | Z58: 54 | AE58: 55 | AF58: 0
E59: =IF(E51+G51=0,"",SUM(E51:E58)) -> 50.00 | G59: =IF(E51+G51=0,"",SUM(G51:G58)) -> 50.00 | M59: 55 | S59: =VLOOKUP(M59,table,2,FALSE) -> 0.00 | Y59: 0.00 | Z59: 56 | AE59: 56 | AF59: 0
M60: 57 | S60: =VLOOKUP(M60,table,2,FALSE) -> 0.00 | T60: =IF(Y60=0,"",VLOOKUP(Z60,table,3,FALSE)) -> 9000 Résultat | Y60: =VLOOKUP(Z60,table,2,FALSE) -> 50.00 | Z60: 68 | AE60: 57 | AF60: 0
M61: 67 | R61: =IF(S61=0,"","spb") ->  | S61: =IF(S52+V52=0,0,IF(SUM(S52:S60)>SUM(V52:V60),0,SUM(V52:V60)-SUM(S52:S60))) -> 0.00 | X61: =IF(Y61=0,"","spb") ->  | Y61: =IF(W52+Y52=0,0,IF(SUM(Y52:Y60)>SUM(W52:W60),0,SUM(W52:W60)-SUM(Y52:Y60))) -> 0.00 | AE61: 38 | AF61: 0
S62: =IF(S52+V52=0,"",SUM(S52:S61)) -> 1,830.00 | Y62: =IF(W52+Y52=0,"",SUM(Y52:Y61)) -> 230.00
N67: PS: Les boutons macros (voir macros) situés en haut de l'écran, sont déjà affectés aux
P68: macros ecr1, ecr2....ecr20; del1, del2,...del20.
H69: 8 | P69: Il suffit donc de créer des macros ecrX pour les écritures et des macros delX
P70: pour effacer les écritures (X = no de l'écriture).
AB72: © Yvan Péguiron - mars 2003
K82: Afficher ou masquer les soldes | Y82: Afficher ou masquer les comptes "Résultat" et "Bilan".
K83: pour balance.
Y86: Montrer ou cacher les boutons macro du haut de la page.
K87: Petits ou grands comptes.
K90: Si des titres de comptes ont été rentrés
K91: à la main, la programmation de ces | Y91: Effacer le contenu de tous les comptes. Les
K92: titres en fonction du petit numéro disparaît. | Y92: titres et la programmation des soldes demeurent.
K93: Ce bouton remettre les formules initiales .
K95: Choix de la grandeur du grand-livre
Y96: Afficher ou masquer les petits carrés bleus ou gris.
G97: Le compte de résultat peut s'afficher avec 8 ou 15 lignes.
G98: (Bilan; 7 ou 14 lignes)
G99: Une présentation à deux niveaux est possible; 4 lignes pour
G100: le BB et 3 lignes pour le BN. | Y100: Attention, ce bouton n'efface pas les écritures mais
Y101: vide les carrés bleus et gris. Ecrivez "oui" si vous êtes sûr !
K102: Le premier compte peut être agrandi.
Y103: Adaptez le grand-livre à votre écran ou à votre beamer
Y104: avec cette commande de zoom.
G105: Si vous souhaitez placer les symboles dans les titres,
G106: il faut les copier et les coller à l'endroit voulu, manuellement ! | Y106: Voir le grand-livre (remonte).

Sheet Plan comptable
A1: La liste ci-dessous est modifiable. (Veuillez respecter la hiérarchie des no)
B3: 1000 | C3: Caisse | D3: + | E3: - | G3: =B46 -> 2000 | H3: =C46 -> Fournisseurs | J3: =B84 -> 4000 | K3: =C84 -> Achats matière | M3: =B75 -> 3000 | N3: =C75 -> Production
B4: 1010 | C4: Poste | D4: + | E4: - | G4: =B47 -> 2010 | H4: =C47 -> Autres dettes | J4: =B85 -> 4200 | K4: =C85 -> Achats march. | M4: =B76 -> 3200 | N4: =C76 -> Ventes
B5: 1020 | C5: Banque | D5: + | E5: - | G5: 2030 | H5: Acomptes clients | J5: 4270 | K5: Frais d'achats | M5: 3290 | N5: Déduc. Accord.
B6: 1040 | C6: Effets à recevoir | D6: + | E6: - | G6: 2100 | H6: Dettes bancaires | J6: 4280 | K6: Variation stock | M6: 3293 | N6: Commis. versées
B7: 1060 | C7: Titres | D7: + | E7: - | G7: 2150 | H7: Dettes fin. | J7: 4300 | K7: Frais de livraison | M7: 3295 | N7: Pertes /créances
B8: 1100 | C8: Débiteurs | D8: + | E8: - | G8: 2170 | H8: Dettes AVS | J8: 4400 | K8: Sous-traitance | M8: 3400 | N8: Honoraires
B9: 1108 | C9: Cré. douteuses | D9: + | E9: - | G9: 2175 | H9: Dettes LPP | J9: 4700 | K9: Charges directes | M9: 3600 | N9: Produits travaux
B10: 1109 | C10: Prov. s/créances | D10: + | E10: - | G10: 2180 | H10: Dettes Caisse AF | J10: 4900 | K10: Déductions | M10: 3700 | N10: Pres. à soi-même
B11: 1110 | C11: Autres créances | D11: + | E11: - | M11: 3900 | N11: Réd. s/ventes
B12: 1140 | C12: Avances salaires | D12: + | E12: - | G12: =B54 -> 2200 | H12: TVA due | J12: =B92 -> 5000 | K12: Salaires prod.
B13: 1170 | C13: Impôt préalable I | D13: + | E13: - | G13: 2230 | H13: Dividendes | J13: 5200 | K13: Salaires
B14: 1171 | C14: Impôt préalable II | D14: + | E14: - | G14: 2235 | H14: Tantièmes | J14: 5270 | K14: Charges sociales
B15: 1172 | C15: Solde TVA | D15: + | E15: - | G15: 2270 | H15: AVS | J15: 5280 | K15: Ch. de personnel
B16: 1176 | C16: Créance AFC | D16: + | E16: - | G16: 2271 | H16: Caisse pension | M16: =B117 -> 7400 | N16: =C117 -> Prod. financiers
B17: 1192 | C17: Acomptes four. | D17: + | E17: - | G17: 2272 | H17: Caisse comp. | J17: =B96 -> 6000 | K17: =C96 -> Loyer | M17: =B118 -> 7410 | N17: =C118 -> Ch. s/placements
B18: 1193 | C18: Effets protestés | D18: + | E18: - | J18: =B97 -> 6100 | K18: =C97 -> Entretien & répar. | M18: 7500 | N18: Prod. d'immeubles
B19: 1200 | C19: Stock | D19: + | E19: - | G19: =B60 -> 2300 | H19: Passif transitoire | J19: 6110 | K19: Réparations | M19: 7510 | N19: Ch. s/ immeubles
B20: 1210 | C20: Stock matière | D20: + | E20: - | G20: 2301 | H20: Charges à payer | J20: 6160 | K20: Leasing | M20: 7520 | N20: Chauffage
B21: 1300 | C21: Actif transitoire | D21: + | E21: - | G21: 2302 | H21: Prod. cons. d'av. | J21: 6200 | K21: Frais véhicules | M21: 8000 | N21: Produits exception.
B22: 1301 | C22: Ch. cons. d'av. | D22: + | E22: - | G22: 2440 | H22: Dettes hypoth. | J22: 6280 | K22: Frais expédition | M22: 8005 | N22: Subventions
B23: 1302 | C23: Prod. à recevoir | D23: + | E23: - | G23: 2500 | H23: Prêt obtenu | J23: 6300 | K23: Assurances | M23: 8010 | N23: Charges exception.
B24: 1420 | C24: Participations | D24: + | E24: - | G24: 2600 | H24: Provisions | J24: 6302 | K24: Taxes | M24: 8015 | N24: Pertes s/créances
B25: 1440 | C25: Prêts accordés | D25: + | E25: - | J25: 6400 | K25: Electricité | M25: 8900 | N25: Impôt sur bénéfice
B26: 1450 | C26: Cré. long terme | D26: + | E26: - | G26: =B66 -> 2800 | H26: =C66 -> Capital | J26: 6500 | K26: Frais adminis. | M26: 8910 | N26: Impôt sur capital
B27: 1500 | C27: Machines | D27: + | E27: - | G27: =B67 -> 2850 | H27: =C67 -> Privé | J27: 6510 | K27: Téléphones | M27: 9000 | N27: Résultat
B28: 1509 | C28: Amo. s/machines | D28: + | E28: - | G28: 2900 | H28: Réserve générale | J28: 6520 | K28: Abonnementgs | M28: 9100 | N28: Bilan d'ouverture
B29: 1510 | C29: Mobilier | D29: + | E29: - | G29: 2910 | H29: Réserve actions | J29: 6570 | K29: Frais informatique | M29: 9110 | N29: Bilan de clôture
B30: 1519 | C30: Amor. s/mobilier | D30: + | E30: - | G30: 2920 | H30: Réserve réévaluation | J30: 6600 | K30: Publicité
B31: 1520 | C31: Informatique | D31: + | E31: - | G31: 2930 | H31: Réserve spéciale | J31: 6700 | K31: ACE
B32: 1529 | C32: Amor. s/info. | D32: + | E32: - | G32: 2940 | H32: Prime émission | J32: 6710 | K32: Diff. de caisse
B33: 1530 | C33: Véhicules | D33: + | E33: - | G33: 2990 | H33: Bénéfice reporté | J33: 6800 | K33: Intérêts-charges
B34: 1539 | C34: Amor. s/véhicules | D34: + | E34: - | G34: 2992 | H34: Bénéfice bilan | J34: 6840 | K34: Frais bancaires
B35: 1540 | C35: Outillage | D35: + | E35: - | J35: 6850 | K35: Intérêts-produits
B36: 1549 | C36: Amor. s/outillage | D36: + | E36: - | J36: 6860 | K36: Frais d'émission
B37: 1600 | C37: Immeuble | D37: + | E37: - | J37: 6900 | K37: Amortissements
B38: 1609 | C38: Amo. s/immeuble | D38: + | E38: -
B39: 1700 | C39: Brevets | D39: + | E39: -
B40: 1709 | C40: Amor. s/brevet | D40: + | E40: -
B41: 1770 | C41: Goodwill | D41: + | E41: -
B42: 1779 | C42: Amor. s/goodwill | D42: + | E42: -
B43: 1800 | C43: Frais de fondation | D43: + | E43: -
B44: 1850 | C44: Actionnaires | D44: + | E44: -
B45: 1860 | C45: Participants | D45: + | E45: -
B46: 2000 | C46: Fournisseurs | D46: - | E46: +
B47: 2010 | C47: Autres dettes | D47: - | E47: +
B48: 2030 | C48: Acomptes clients | D48: - | E48: +
B49: 2100 | C49: Dettes bancaires | D49: - | E49: +
B50: 2150 | C50: Dettes fin. | D50: - | E50: +
B51: 2170 | C51: Dettes AVS | D51: - | E51: +
B52: 2175 | C52: Dettes LPP | D52: - | E52: +
B53: 2180 | C53: Dettes Caisse AF | D53: - | E53: +
B54: 2200 | C54: TVA due | D54: - | E54: +
B55: 2230 | C55: Dividendes | D55: - | E55: +
B56: 2235 | C56: Tantièmes | D56: - | E56: +
B57: 2270 | C57: AVS | D57: - | E57: +
B58: 2271 | C58: Caisse pension | D58: - | E58: +
B59: 2272 | C59: Caisse comp. | D59: - | E59: +
B60: 2300 | C60: Passif transitoire | D60: - | E60: +
B61: 2301 | C61: Charges à payer | D61: - | E61: +
B62: 2302 | C62: Prod. cons. d'av. | D62: - | E62: +
B63: 2440 | C63: Dettes hypoth. | D63: - | E63: +
B64: 2500 | C64: Prêt obtenu | D64: - | E64: +
B65: 2600 | C65: Provisions | D65: - | E65: +
B66: 2800 | C66: Capital | D66: - | E66: +
B67: 2850 | C67: Privé | D67: - | E67: +
B68: 2900 | C68: Réserve générale | D68: - | E68: +
B69: 2910 | C69: Réserve actions | D69: - | E69: +
B70: 2920 | C70: Réserve réévaluation | D70: - | E70: +
B71: 2930 | C71: Réserve spéciale | D71: - | E71: +
B72: 2940 | C72: Prime émission | D72: - | E72: +
B73: 2990 | C73: Bénéfice reporté | D73: - | E73: +
B74: 2992 | C74: Bénéfice bilan | D74: - | E74: +
B75: 3000 | C75: Production | D75: - | E75: +
B76: 3200 | C76: Ventes | D76: - | E76: +
B77: 3290 | C77: Déduc. Accord. | D77: - | E77: +
B78: 3293 | C78: Commis. versées | D78: - | E78: +
B79: 3295 | C79: Pertes /créances | D79: - | E79: +
B80: 3400 | C80: Honoraires | D80: - | E80: +
B81: 3600 | C81: Produits travaux | D81: - | E81: +
B82: 3700 | C82: Pres. à soi-même | D82: - | E82: +
B83: 3900 | C83: Réd. s/ventes | D83: - | E83: +
B84: 4000 | C84: Achats matière | D84: + | E84: -
B85: 4200 | C85: Achats march. | D85: + | E85: -
B86: 4270 | C86: Frais d'achats | D86: + | E86: -
B87: 4280 | C87: Variation stock | D87: + | E87: -
B88: 4300 | C88: Frais de livraison | D88: + | E88: -
B89: 4400 | C89: Sous-traitance | D89: + | E89: -
B90: 4700 | C90: Charges directes | D90: + | E90: -
B91: 4900 | C91: Déductions | D91: + | E91: -
B92: 5000 | C92: Salaires prod. | D92: + | E92: -
B93: 5200 | C93: Salaires | D93: + | E93: -
B94: 5270 | C94: Charges sociales | D94: + | E94: -
B95: 5280 | C95: Ch. de personnel | D95: + | E95: -
B96: 6000 | C96: Loyer | D96: + | E96: -
B97: 6100 | C97: Entretien & répar. | D97: + | E97: -
B98: 6110 | C98: Réparations | D98: + | E98: -
B99: 6160 | C99: Leasing | D99: + | E99: -
B100: 6200 | C100: Frais véhicules | D100: + | E100: -
B101: 6280 | C101: Frais expédition | D101: + | E101: -
B102: 6300 | C102: Assurances | D102: + | E102: -
B103: 6302 | C103: Taxes | D103: + | E103: -
B104: 6400 | C104: Electricité | D104: + | E104: -
B105: 6500 | C105: Frais adminis. | D105: + | E105: -
B106: 6510 | C106: Téléphones | D106: + | E106: -
B107: 6520 | C107: Abonnementgs | D107: + | E107: -
B108: 6570 | C108: Frais informatique | D108: + | E108: -
B109: 6600 | C109: Publicité | D109: + | E109: -
B110: 6700 | C110: ACE | D110: + | E110: -
B111: 6710 | C111: Diff. de caisse | D111: + | E111: -
B112: 6800 | C112: Intérêts-charges | D112: + | E112: -
B113: 6840 | C113: Frais bancaires | D113: + | E113: -
B114: 6850 | C114: Intérêts-produits | D114: + | E114: -
B115: 6860 | C115: Frais d'émission | D115: + | E115: -
B116: 6900 | C116: Amortissements | D116: + | E116: -
B117: 7400 | C117: Prod. financiers | D117: - | E117: +
B118: 7410 | C118: Ch. s/placements
B119: 7500 | C119: Prod. d'immeubles
B120: 7510 | C120: Ch. s/ immeubles
B121: 7520 | C121: Chauffage
B122: 8000 | C122: Produits exception.
B123: 8005 | C123: Subventions
B124: 8010 | C124: Charges exception.
B125: 8015 | C125: Pertes s/créances
B126: 8900 | C126: Impôt sur bénéfice
B127: 8910 | C127: Impôt sur capital
B128: 9000 | C128: Résultat
B129: 9100 | C129: Bilan d'ouverture
B130: 9110 | C130: Bilan de clôture
